bitfinex/quotes_ETHUSD_20250131
["timestamp","ask_amount","ask_price","bid_price","bid_amount"]
[1738312477009,3.08394,3242.6,3242.2,0.7812]
[1738312477815,3.1225921,3242.5,3242.2,0.7812]
[1738312478012,0.0385521,3242.5,3242.2,0.7812]
[1738312478179,3.08394,3242.6,3242.2,0.7812]
[1738312479812,3.12249211,3242.6,3242.2,0.7812]
[1738312480207,3.08394,3242.6,3242.2,0.7812]
[1738312481795,2.5621,3242.7,3242.2,0.7812]
[1738312482168,2.5621,3242.7,3242.2,3.86547]
[1738312482568,2.5621,3242.7,3242.3,3.08419]
[1738312490803,2.5621,3242.7,3242.2,0.7812]
[1738312490970,2.5621,3242.7,3242.2,3.86546]
[1738312492110,2.5621,3242.7,3242.2,0.7812]
[1738312492286,2.5621,3242.7,3242.3,3.08417]
[1738312494012,0.03854965,3242.6,3242.2,0.7812]
[1738312494375,2.5621,3242.7,3242.2,0.7812]
[1738312494578,2.90416522,3242.7,3242.2,0.7812]
[1738312496291,5.98802522,3242.7,3242.2,0.7812]
[1738312497509,2.90416522,3242.7,3242.2,3.86545]
[1738312497703,2.5621,3242.7,3242.2,3.86545]
[1738312497944,2.5621,3242.7,3242.4,3.08412]
[1738312499198,2.5621,3242.7,3242.2,3.86545]
[1738312499399,0.03854947,3242.6,3242.2,3.86545]
[1738312499629,2.5621,3242.7,3242.2,3.86545]
[1738312502834,2.5621,3242.7,3242.2,6.94971]
[1738312503137,2.5621,3242.7,3242.2,3.86545]
[1738312505923,0.03855182,3242.6,3242.2,0.7812]
[1738312506108,3.08426,3242.3,3241.8,0.7892]
[1738312506306,0.03855637,3242.2,3241.7,3.08476]
[1738312506524,0.03855637,3242.2,3241.3,10.2634]
[1738312506525,0.8078,3242.1,3241.3,10.2634]
[1738312506711,3.08477,3241.8,3241.3,1.3334]
[1738312507018,0.03856397,3241.7,3241.3,1.3334]
[1738312507224,3.08496,3241.6,3241.3,1.3334]
[1738312507407,0.03856466,3241.5,3241.3,1.3334]
[1738312507608,3.08477,3241.8,3241.3,1.3334]
[1738312507808,3.393327,3241.7,3241.3,1.3334]
[1738312508010,3.88108466,3241.6,3241.3,1.3334]
[1738312508430,3.08508,3241.4,3241.3,1.3334]
[1738312508617,3.12364588,3241.4,3241.3,1.3334]
[1738312508819,3.08508,3241.4,3241.3,1.3334]
[1738312509038,3.77784,3241.4,3241.3,1.3334]
[1738312509652,4.33534,3241.4,3241.3,1.3334]
[1738312509857,8.13604,3241.4,3241.3,1.3334]
[1738312510215,8.14354,3241.4,3241.3,1.3334]
[1738312513164,8.13604,3241.4,3241.3,1.3334]
[1738312515061,8.14354,3241.4,3241.3,1.3334]
[1738312515423,13.49354,3241.4,3241.3,1.16342278]
[1738312515634,7.44955,3240.8,3240.7,1.0]
[1738312515930,15.69664464,3240.8,3240.7,1.0]
[1738312516125,15.89664464,3240.8,3240.7,1.0]
[1738312516843,6.8857,3239.6,3239.5,1.0]
[1738312517142,7.4432,3239.6,3239.5,1.0]
[1738312517342,8.496188,3239.6,3239.5,1.0]
[1738312518036,11.39328264,3239.6,3239.5,1.0]
[1738312518247,11.40078264,3239.6,3239.5,1.0]
[1738312520664,3.0,3239.6,3239.5,1.0]
[1738312522269,3.08636,3240.1,3239.5,1.0]
[1738312522623,3.0,3240.0,3239.5,1.0]
[1738312522853,6.08651,3240.0,3239.5,1.0]
[1738312523266,3.0385848,3240.0,3239.5,1.0]
[1738312523464,3.8138848,3240.0,3239.5,1.0]
[1738312523768,6.86178,3240.0,3239.5,1.0]
[1738312523970,6.08648,3240.0,3239.5,1.0]
[1738312524486,6.08647,3240.0,3239.5,1.0]
[1738312525835,3.08663,3239.8,3239.5,1.0]
[1738312526432,6.08647,3240.0,3239.5,1.0]
[1738312533197,3.08653,3239.9,3239.5,1.0]
[1738312533400,3.12511478,3239.9,3239.5,1.0]
[1738312533603,3.08653,3239.9,3239.5,1.0]
[1738312535222,3.0868,3239.6,3239.5,1.0]
[1738312535707,3.08669,3239.8,3239.5,1.0]
[1738312539289,3.08642,3240.0,3239.5,1.0]
[1738312539290,3.08642,3240.0,3239.6,0.8197]
[1738312541412,3.08661,3239.8,3239.6,0.8197]
[1738312541982,3.08642,3240.0,3239.6,0.8197]
[1738312542504,3.0,3240.1,3239.6,0.8197]
[1738312543176,3.0,3240.1,3239.7,3.08669]
[1738312543578,3.0,3240.1,3239.8,3.0866]
[1738312544283,3.08613,3240.3,3239.8,3.0866]
[1738312545496,3.08624,3240.2,3239.6,4.705811]
[1738312546619,3.0,3240.2,3239.8,3.08659]
[1738312546784,3.0,3240.3,3239.9,0.7952]
[1738312547184,6.08613,3240.3,3239.9,0.7952]
[1738312547622,3.08606,3240.4,3239.9,0.7952]
[1738312547822,3.08586,3240.6,3239.9,0.7952]
[1738312548140,3.0,3240.5,3240.0,3.08634]
[1738312548346,3.08586,3240.6,3240.0,3.08634]
[1738312551126,3.08594,3240.5,3240.0,3.08634]
[1738312552203,3.08606,3240.4,3239.9,1.15927178]
[1738312552436,3.12463761,3240.4,3239.9,1.15927178]
[1738312552621,3.08623,3240.2,3239.9,0.7952]
[1738312552938,3.08652,3239.9,3239.5,1.0]
[1738312553133,3.12519469,3239.8,3239.5,1.0]
[1738312553439,3.51708416,3239.8,3239.5,1.0]
[1738312553743,3.0868,3239.6,3239.5,1.0]
[1738312553940,3.12538676,3239.6,3239.5,1.0]
[1738312554449,6.95458676,3239.6,3239.5,1.0]
[1738312554611,6.916,3239.6,3239.5,1.0]
[1738312554815,11.16121359,3239.6,3239.5,1.0]
[1738312555217,11.71871359,3239.6,3239.5,1.0]
[1738312556042,8.82161895,3239.6,3239.5,1.0]
[1738312558644,11.71871359,3239.6,3239.5,1.0]
[1738312561646,20.26580823,3239.6,3239.5,1.0]
[1738312561850,20.26580823,3239.6,3239.5,0.852]
[1738312562054,3.92546,3238.8,3238.7,1.5]
[1738312562214,10.76510064,3238.8,3238.7,1.5]
[1738312562416,10.76510064,3238.8,3238.7,1.45]
[1738312566754,11.38574085,3238.8,3238.7,1.45]
[1738312566979,10.76510064,3238.8,3238.7,1.45]
[1738312567130,10.96710064,3238.8,3238.7,1.45]
[1738312569016,11.16710064,3238.8,3238.7,1.45]
[1738312569223,11.26710064,3238.8,3238.7,1.45]
[1738312569447,11.26710064,3238.8,3238.7,0.0005]
[1738312569641,3.90251,3237.8,3237.7,1.0]
[1738312569817,11.08730849,3237.8,3237.7,1.0]
[1738312570147,11.04869664,3237.8,3237.7,1.0]
[1738312571544,8.151602,3237.8,3237.7,1.0]
[1738312573578,11.04869664,3237.8,3237.7,1.0]
[1738312574572,11.24869664,3237.8,3237.7,1.0]
[1738312575197,11.24869664,3237.8,3237.7,0.2360363]
[1738312575343,6.6537,3237.6,3237.5,0.0878992]
[1738312575675,9.55223966,3237.6,3237.5,0.0878992]
[1738312576072,9.65223966,3237.6,3237.5,0.0878992]
[1738312576836,9.55223966,3237.6,3237.5,0.0878992]
[1738312577244,9.35223966,3237.6,3237.5,0.0878992]
[1738312582677,9.14923966,3237.6,3237.5,0.0878992]
[1738312582884,9.35223966,3237.6,3237.5,0.0878992]
[1738312585082,9.14923966,3237.6,3237.5,0.0878992]
[1738312585282,6.6537,3237.6,3237.5,0.0878992]
[1738312587795,0.015,3237.6,3237.5,0.0878992]
[1738312588108,3.71508547,3238.0,3237.5,0.9176992]
[1738312588260,3.08858,3237.8,3237.5,0.9176992]
[1738312588590,3.0887,3237.6,3237.5,0.9176992]
[1738312588977,6.6462,3237.6,3237.5,0.0878992]
[1738312589155,6.6537,3237.6,3237.5,0.0878992]
[1738312589358,3.0075,3237.6,3237.5,0.8492992]
[1738312589779,3.0,3237.6,3237.5,0.8492992]
[1738312590022,0.565,3237.9,3237.5,0.8492992]
[1738312591739,0.0075,3237.6,3237.5,0.8492992]
[1738312592041,3.6537,3237.6,3237.5,0.8492992]
[1738312593518,4.327932,3237.6,3237.5,0.8492992]
[1738312593729,4.327932,3237.6,3237.5,0.0878992]
[1738312594045,3.0,3237.8,3237.5,0.8811992]
[1738312594341,0.03861022,3237.7,3237.5,0.8811992]
[1738312594621,6.08855,3237.8,3237.5,0.8811992]
[1738312595633,3.0075,3237.9,3237.5,0.8811992]
[1738312595865,0.0075,3237.7,3237.5,0.8811992]
[1738312596133,0.0075,3237.7,3237.5,0.0878992]
[1738312596134,6.6537,3237.6,3237.5,0.0878992]
[1738312597499,3.0075,3237.6,3237.5,0.0878992]
[1738312602630,3.0881,3238.3,3237.5,3.1766092]
[1738312602815,3.0881,3238.3,3237.6,0.796]
[1738312603026,3.015,3238.2,3237.6,3.88467]
[1738312603350,3.08777,3238.6,3237.9,3.08838]
[1738312603493,0.0075,3238.5,3237.9,0.796]
[1738312603695,0.60677608,3238.8,3238.0,3.08823]
[1738312603929,0.5575,3238.7,3238.2,3.08813]
[1738312604108,0.5575,3238.7,3238.3,0.7674]
[1738312605708,6.64516,3238.7,3238.3,0.7674]
[1738312606096,0.0075,3238.4,3238.3,0.7674]
[1738312606503,0.5575,3238.5,3238.3,0.7674]
[1738312606752,3.0,3238.7,3238.3,0.7674]
[1738312606902,3.08753,3238.9,3238.3,0.7674]
[1738312607813,0.565,3238.8,3238.3,0.7674]
[1738312608882,3.65257,3238.8,3238.3,0.7674]
[1738312609582,0.565,3238.8,3238.3,0.7674]
[1738312610376,2.89709464,3239.3,3238.5,3.0878]
[1738312610377,3.0,3239.0,3238.5,3.0878]
[1738312610676,0.0075,3238.9,3238.6,0.8308]
[1738312611343,0.60634342,3239.4,3238.6,3.91849]
[1738312611529,0.60634342,3239.4,3238.9,0.7513]
[1738312611892,3.08644,3240.0,3239.2,3.08717]
[1738312612187,3.08652,3239.9,3239.3,0.7513]
[1738312612842,0.55,3239.8,3239.3,0.7513]
[1738312613045,3.60358834,3239.8,3239.3,0.7513]
[1738312613221,0.0075,3239.6,3239.3,0.7513]
[1738312614059,3.55,3239.8,3239.3,0.7513]
[1738312614225,0.0075,3239.7,3239.3,3.83838]
[1738312616449,3.0,3240.0,3239.4,3.84281]
[1738312616765,3.08643,3240.0,3239.4,0.7559]
[1738312616973,3.1326256,3239.9,3239.4,0.7559]
[1738312617276,0.0460856,3239.9,3239.4,0.7559]
[1738312617580,0.0075,3239.7,3239.4,0.7559]
[1738312618764,3.13278715,3239.7,3239.4,0.7559]
[1738312619531,3.08681,3239.6,3239.4,0.7559]
[1738312619761,0.0075,3239.5,3239.0,0.7783]
[1738312620168,3.08662,3239.8,3239.3,0.7783]
[1738312620480,3.08642,3240.0,3239.3,0.7783]
[1738312621377,3.65157,3239.9,3239.3,0.7783]
[1738312621830,0.565,3239.9,3239.3,0.7783]
[1738312622029,3.08626,3240.2,3239.6,3.08678]
[1738312622872,0.0075,3240.0,3239.6,3.08678]
[1738312623231,0.0075,3240.0,3239.7,0.7816]
[1738312623688,6.08614,3240.3,3239.7,3.86829]
[1738312623851,3.0,3240.3,3239.7,3.86829]
[1738312624052,0.5575,3240.2,3239.7,3.86829]
[1738312624951,0.0075,3240.2,3239.9,3.08644]
[1738312625458,0.0075,3240.4,3240.0,0.769]
[1738312625633,3.0,3240.7,3240.1,3.08632]
[1738312625834,0.608567,3240.7,3240.2,0.7712]
[1738312626049,3.08528,3241.2,3240.4,0.7712]
[1738312626248,3.08528,3241.2,3240.6,0.7712]
[1738312626992,6.08519,3241.3,3240.7,3.08572]
[1738312627352,0.0075,3241.2,3240.7,3.08572]
[1738312627558,3.08489,3241.6,3240.8,3.08563]
[1738312627885,3.75939846,3241.6,3240.9,0.7617]
[1738312628089,3.015,3241.5,3240.9,0.7617]
[1738312628236,0.0075,3241.3,3241.0,3.08541]
[1738312628436,6.08499,3241.5,3240.9,0.7617]
[1738312628663,0.0075,3241.4,3240.9,3.84725]
[1738312629092,0.0075,3241.4,3241.0,3.08542]
[1738312629235,3.08473,3241.8,3241.0,3.08542]
[1738312629596,0.0075,3241.7,3241.2,3.88801]
[1738312630095,3.09231,3241.7,3241.2,0.8028]
[1738312630382,0.0075,3241.7,3241.2,0.8028]
[1738312630593,3.09231,3241.7,3241.2,0.8028]
[1738312631308,3.08462,3241.9,3241.3,3.08515]
[1738312631601,6.08472,3241.8,3241.2,3.88806]
[1738312632006,3.0,3241.9,3241.2,1.500136]
[1738312632301,3.0,3241.9,3241.2,4.585336]
[1738312632750,3.0,3241.9,3241.3,3.08515]
[1738312633409,3.12323009,3241.9,3241.3,3.08515]
[1738312633547,3.08502,3241.5,3241.2,0.8028]
[1738312633755,3.08489,3241.6,3241.2,0.8028]
[1738312635103,3.13105296,3241.5,3241.0,0.8244]
[1738312635253,3.08518,3241.3,3241.0,0.8244]
[1738312635602,3.08529,3241.2,3241.0,0.8244]
[1738312635759,3.08518,3241.3,3241.0,0.8244]
[1738312635954,3.08533,3241.2,3241.0,0.8244]
[1738312636155,0.04606841,3241.5,3240.7,0.805]
[1738312636156,3.12401842,3241.1,3240.7,0.805]
[1738312636368,0.0075,3241.0,3240.4,0.805]
[1738312636603,3.08576,3240.7,3240.4,0.805]
[1738312636817,0.5575,3240.6,3240.1,0.7743]
[1738312637108,3.08601,3240.5,3240.1,0.7743]
[1738312637413,3.08616,3240.3,3240.1,0.7743]
[1738312637592,0.03857762,3240.4,3240.1,0.7743]
[1738312637755,3.08601,3240.5,3240.1,0.7743]
[1738312640014,3.08604,3240.4,3240.1,0.7743]
[1738312640600,3.08601,3240.5,3240.1,0.7743]
[1738312640902,3.08604,3240.4,3240.1,0.7743]
[1738312641290,0.0075,3240.5,3240.1,0.7743]
[1738312641704,3.09347,3240.5,3240.1,0.7743]
[1738312643324,3.08544,3241.1,3240.2,3.08619]
[1738312643465,3.08544,3241.1,3240.5,0.7849]
[1738312643897,0.0075,3241.0,3240.5,3.87083]
[1738312644098,3.08498,3241.6,3240.9,3.08555]
[1738312644312,3.08498,3241.6,3240.8,0.7942]
[1738312644313,3.08511,3241.4,3240.8,0.7942]
[1738312644520,3.08511,3241.4,3240.8,3.87981]
[1738312644659,3.08511,3241.4,3240.9,3.08554]
[1738312645922,3.08511,3241.4,3240.8,0.7942]
[1738312646122,0.0075,3241.3,3240.8,0.7942]
[1738312646423,3.08537,3241.1,3240.8,0.7942]
[1738312646917,0.0075,3241.1,3240.8,0.7942]
[1738312647115,3.0,3241.3,3240.8,0.7942]
[1738312647418,3.08509,3241.4,3240.9,3.473468]
[1738312648625,0.0075,3241.5,3240.9,3.473468]
[1738312648789,0.0075,3241.5,3241.0,3.08545]
[1738312649500,0.0075,3241.5,3241.1,0.7919]
[1738312649715,3.0,3241.7,3241.1,3.87721]
[1738312650017,3.08472,3241.8,3241.3,3.08517]
[1738312650227,0.0075,3241.7,3241.3,3.08517]
[1738312650735,0.0075,3241.7,3241.2,3.08524]
[1738312651337,3.0,3242.0,3241.2,3.08527]
[1738312651488,3.0,3242.0,3241.4,3.08502]
[1738312652081,4.48094125,3242.3,3241.3,0.8163]
[1738312652337,4.48094125,3242.3,3240.0,0.2075]
[1738312652338,3.08431,3242.3,3241.7,0.8253]
[1738312652840,0.0075,3242.2,3241.8,3.0847]
[1738312653132,0.0075,3242.2,3241.7,0.8253]
[1738312653133,3.08443,3242.1,3241.7,0.8253]
[1738312653302,3.08462,3241.9,3241.7,0.8253]
[1738312654504,3.08476,3241.8,3241.1,3.08532]
[1738312654897,3.09202,3242.0,3241.4,3.08505]
[1738312655104,0.0075,3242.0,3241.4,3.08505]
[1738312655399,0.0075,3242.0,3241.4,3.783136]
[1738312655637,0.0075,3242.0,3241.5,3.08498]
[1738312656203,0.0075,3242.2,3241.6,3.88413]
[1738312657704,0.0075,3242.2,3241.7,3.08478]
[1738312659440,3.08407,3242.5,3242.0,0.8322]
[1738312660545,3.08414,3242.4,3242.0,0.8322]
[1738312660902,3.08407,3242.5,3242.0,0.8322]
[1738312661108,0.015,3242.3,3241.7,0.8322]
[1738312661337,0.565,3242.3,3241.7,0.8322]
[1738312661522,3.08463,3241.9,3241.1,3.9175]
[1738312661718,3.08479,3241.8,3241.1,3.9175]
[1738312661938,3.08479,3241.8,3241.1,4.617802]
[1738312662540,3.08481,3241.7,3241.1,4.617802]
[1738312662742,3.08479,3241.8,3241.2,3.08524]
[1738312663258,3.08479,3241.8,3241.3,3.08515]
[1738312663410,3.08479,3241.8,3241.1,4.617802]
[1738312663609,3.08479,3241.8,3241.2,0.4617802]
[1738312664309,3.08485,3241.7,3241.2,0.4617802]
[1738312664606,3.08485,3241.7,3241.1,3.9175]
[1738312666361,3.08484,3241.7,3241.1,3.9175]
[1738312666849,3.08484,3241.7,3240.6,6.00126192]
[1738312666850,0.0075,3241.4,3240.7,3.08571]
[1738312667014,3.08522,3241.3,3240.8,0.8205]
[1738312668449,3.08533,3241.2,3240.8,0.8205]
[1738312669340,3.87096,3241.4,3240.8,0.8205]
[1738312669540,0.03856706,3241.3,3240.8,0.8205]
[1738312669937,3.08552,3241.0,3240.8,0.8205]
[1738312670126,3.08552,3241.0,3240.4,3.89761]
[1738312670543,0.0075,3241.1,3240.4,3.89763]
[1738312670745,3.0929,3241.1,3240.5,3.08594]
[1738312670929,3.0929,3241.1,3240.6,3.08583]
[1738312672443,3.0929,3241.1,3240.4,3.89763]
[1738312672642,3.0929,3241.1,3240.5,3.08591]
[1738312673530,0.03857058,3241.0,3240.4,3.89763]
[1738312673834,3.08572,3240.8,3240.4,0.8116]
[1738312674034,3.08575,3240.7,3240.4,0.8116]
[1738312674239,3.08575,3240.7,3240.1,3.08626]
[1738312674535,3.08575,3240.7,3240.1,3.87006]
[1738312674739,0.0075,3240.8,3240.2,3.08614]
[1738312675063,0.0075,3240.8,3240.3,3.08611]
[1738312675436,3.09322,3240.8,3240.2,0.69562]
[1738312675636,3.09322,3240.8,3240.2,3.78182]
[1738312676369,3.09322,3240.8,3240.3,3.0861]
[1738312677377,3.09322,3240.8,3240.2,0.69562]
[1738312678485,3.09322,3240.8,3240.2,3.78183]
[1738312678650,3.09322,3240.8,3240.3,3.08609]
[1738312678973,0.0075,3240.8,3240.3,3.08609]
[1738312679169,0.0075,3240.8,3240.3,3.55389278]
[1738312679871,3.09322,3240.8,3240.3,0.46780278]
[1738312680075,3.08575,3240.7,3240.1,3.87005]
[1738312680236,3.08575,3240.7,3240.2,3.08621]
[1738312680638,3.08575,3240.7,3240.1,0.7838]
[1738312680973,3.08575,3240.7,3240.1,3.87012]
[1738312681570,3.08594,3240.5,3240.1,0.7838]
[1738312682678,0.03857447,3240.6,3240.1,0.7838]
[1738312683470,3.08607,3240.4,3239.9,3.86876]
[1738312683645,3.08607,3240.4,3239.9,0.7823]
[1738312683866,0.0075,3240.5,3240.0,3.08636]
[1738312684083,0.0075,3240.5,3240.1,3.0863]
[1738312685721,0.0075,3240.5,3240.0,3.78191]
[1738312685860,0.0075,3240.3,3239.9,0.7823]
[1738312686056,3.08628,3240.2,3239.6,3.87144]
[1738312686262,3.08628,3240.2,3239.7,3.0867]
[1738312686499,3.08628,3240.2,3239.6,0.7847]
[1738312686718,0.0385803,3240.2,3239.6,0.7847]
[1738312686891,3.08642,3240.0,3239.6,0.7847]
[1738312687223,3.08637,3240.1,3239.5,3.08689]
[1738312689904,3.90476,3240.3,3239.5,3.782754]
[1738312690086,3.90476,3240.3,3239.7,3.08669]
[1738312690286,3.0,3240.4,3239.7,3.08669]
[1738312690489,3.0,3240.4,3239.9,3.0865]
[1738312690691,0.794,3240.6,3240.0,3.08635]
[1738312690887,3.87989,3240.6,3240.0,3.08635]
[1738312691087,3.08595,3240.5,3239.9,3.08648]
[1738312691303,3.08595,3240.5,3239.9,3.785674]
[1738312691703,3.08595,3240.5,3240.0,3.0864]
[1738312692387,0.0075,3240.6,3240.1,3.08627]
[1738312692591,3.08557,3240.9,3240.3,3.08612]
[1738312692776,3.08557,3240.9,3240.4,4.151122]
[1738312693402,3.08566,3240.8,3240.4,1.065112]
[1738312693606,3.08566,3240.8,3240.4,0.7565]
[1738312694105,0.0075,3240.6,3240.1,3.84278]
[1738312694407,0.7975,3240.5,3239.8,0.7565]
[1738312694703,3.12467749,3240.4,3239.8,3.8431]
[1738312694905,0.0075,3240.3,3239.8,0.7565]
[1738312695123,3.08624,3240.2,3239.8,0.7565]
[1738312695531,3.08647,3240.0,3239.4,3.08691]
[1738312695691,0.0075,3240.0,3239.5,0.8317]
[1738312696108,3.09398,3240.0,3239.5,0.8317]
[1738312696430,0.0075,3240.0,3239.5,0.8317]
[1738312696722,0.0075,3240.0,3239.5,3.9185]
[1738312696930,3.08605,3240.4,3239.8,3.08654]
[1738312697223,0.788,3240.7,3240.2,3.08622]
[1738312697429,3.08601,3240.5,3239.9,0.8219]
[1738312697722,3.08606,3240.4,3239.9,0.8219]
[1738312698025,3.12447747,3240.6,3239.9,0.8219]
[1738312698233,3.12447747,3240.6,3239.7,0.8219]
[1738312698234,0.5575,3240.4,3239.7,0.8219]
[1738312698426,3.08633,3240.1,3239.7,0.8219]
[1738312699296,3.87426,3240.2,3239.7,0.8219]
[1738312701435,0.0075,3240.3,3239.7,3.90856]
[1738312702029,3.09364,3240.3,3239.7,3.90856]
[1738312702234,0.0075,3240.3,3239.7,3.90856]
[1738312702419,0.0075,3240.3,3239.8,3.0866]
[1738312702795,3.0,3240.7,3240.2,3.08622]
[1738312703097,3.08556,3240.9,3240.3,3.08612]
[1738312703301,3.08556,3240.9,3240.0,0.806]
[1738312703302,3.09322,3240.8,3240.0,6.97875]
[1738312703531,3.12437423,3240.7,3240.0,6.97875]
[1738312703716,3.12437423,3240.7,3240.0,3.89235]
[1738312703920,3.08611,3240.4,3240.0,0.806]
[1738312704234,3.08624,3240.2,3239.6,3.87037]
[1738312705209,0.0075,3240.3,3239.8,3.0866]
[1738312706232,3.85848,3240.6,3239.8,3.0866]
[1738312706433,3.85848,3240.6,3240.0,3.08634]
[1738312707632,3.08588,3240.6,3240.1,0.8024]
[1738312709338,0.0075,3240.7,3240.1,3.88872]
[1738312709631,0.0075,3240.7,3240.2,3.08622]
[1738312709806,3.0,3240.9,3240.2,3.08622]
[1738312710211,3.08557,3240.9,3240.4,3.08602]
[1738312710398,3.08557,3240.9,3240.2,3.08622]
[1738312710598,3.08575,3240.7,3240.2,3.5367314]
[1738312710840,3.08585,3240.6,3240.1,0.8024]
[1738312711000,3.08585,3240.6,3239.9,0.7602]
[1738312711001,0.0075,3240.4,3239.9,0.7602]
[1738312711205,3.08621,3240.3,3239.9,0.7602]
[1738312711941,3.08623,3240.2,3239.9,0.7602]
[1738312712101,3.08623,3240.2,3239.7,0.7992]
[1738312712304,3.12480982,3240.2,3239.7,0.7992]
[1738312715099,0.0075,3240.1,3239.7,0.7992]
[1738312716045,3.09388,3240.1,3239.7,0.7992]
[1738312716335,3.08617,3240.3,3239.7,0.7992]
[1738312716704,3.08643,3240.0,3239.4,3.08694]
[1738312716905,3.08643,3240.0,3239.5,1.117294]
[1738312717105,3.12501242,3240.0,3239.5,0.8086]
[1738312717359,0.0075,3240.0,3239.6,3.08677]
[1738312717754,0.8237,3240.4,3239.9,3.08644]
[1738312717755,3.0,3240.4,3239.9,3.08644]
[1738312718376,3.1245274,3240.5,3239.9,3.08644]
[1738312719375,0.0075,3240.5,3240.0,0.754]
[1738312719744,0.04607739,3240.5,3240.0,0.754]
[1738312720149,0.0075,3240.5,3240.0,4.533053]
[1738312720784,3.09344,3240.5,3240.0,4.533053]
[1738312722182,0.5575,3240.6,3240.0,4.533053]
[1738312722589,3.64337,3240.6,3240.0,4.533053]
[1738312723059,3.08594,3240.5,3240.0,4.533053]
[1738312723387,3.12451737,3240.5,3240.0,3.84035]
[1738312723558,3.08594,3240.5,3240.0,3.84035]
[1738312723751,0.5575,3240.6,3240.1,3.08626]
[1738312723979,3.87368,3240.9,3240.3,3.08613]
[1738312724491,0.0385726,3240.8,3240.3,3.08613]
[1738312725473,3.87368,3240.9,3240.3,3.08613]
[1738312725694,3.08558,3240.9,3240.3,3.08613]
[1738312726012,6.64297,3241.0,3240.5,3.08593]
[1738312726574,6.64297,3241.0,3240.4,0.7722]
[1738312726897,6.64297,3241.0,3240.4,3.85822]
[1738312729382,3.08565,3240.8,3240.4,0.7722]
[1738312729590,0.0075,3240.5,3240.0,0.7975]
[1738312729910,0.35927598,3240.5,3240.0,0.7975]
[1738312730208,0.35927598,3240.5,3239.8,0.7975]
[1738312730209,3.08631,3240.2,3239.8,0.7975]
[1738312731491,3.08643,3240.0,3239.6,0.7588]
[1738312731686,0.8243,3239.9,3239.4,3.08695]
[1738312731893,0.8243,3239.9,3239.3,0.7588]
[1738312731894,0.86288087,3239.9,3239.3,0.7588]
[1738312732117,3.08661,3239.8,3239.3,0.7588]
[1738312732620,0.86288087,3239.9,3239.3,3.84587]
[1738312732831,3.94940087,3239.9,3239.3,3.84587]
[1738312733037,3.91082,3239.9,3239.3,3.84587]
[1738312734026,0.8243,3239.9,3239.4,3.08698]
[1738312735544,0.8243,3239.9,3239.0,3.08733]
[1738312735545,0.04608266,3239.8,3239.0,3.08733]
[1738312735743,0.8117,3239.4,3238.8,3.08751]
[1738312736050,0.0075,3239.6,3239.0,3.08734]
[1738312736953,3.09432,3239.6,3239.0,3.08734]
[1738312738158,3.0,3239.8,3239.3,3.08708]
[1738312738458,3.663655,3239.8,3239.4,0.8134]
[1738312738662,0.663655,3239.8,3239.4,3.90035]
[1738312738803,0.8117,3240.0,3239.6,3.08677]
[1738312740147,0.0075,3240.0,3239.6,3.08677]
[1738312740787,0.0075,3240.0,3239.4,3.90035]
[1738312741898,3.13250264,3240.0,3239.4,3.90035]
[1738312742252,3.13250264,3240.0,3239.4,3.08695]
[1738312742685,3.09392,3240.0,3239.4,3.08695]
[1738312743865,0.0075,3240.0,3239.4,3.08695]
[1738312744059,0.0075,3240.0,3239.5,3.08687]
[1738312744591,0.0075,3240.0,3239.4,3.471945]
[1738312744791,3.08662,3239.8,3239.2,3.85015]
[1738312744956,0.7684,3239.7,3239.2,3.85015]
[1738312745157,0.80698568,3239.7,3239.2,3.08715]
[1738312745386,3.85512,3239.7,3239.2,3.08715]
[1738312745568,3.08683,3239.6,3239.0,3.86453]
[1738312745886,3.85512,3239.7,3239.0,4.559735]
[1738312746072,3.08705,3239.4,3238.8,3.86472]
[1738312746979,3.08693,3239.5,3238.9,3.08744]
[1738312747287,3.08693,3239.5,3239.0,3.08736]
[1738312750673,0.0075,3239.6,3239.0,3.08736]
[1738312750874,0.0075,3239.6,3239.1,3.0872]
[1738312751111,3.09432,3239.6,3239.0,0.695208]
[1738312751270,3.09432,3239.6,3239.0,3.782518]
[1738312751470,3.09432,3239.6,3239.0,3.08731]
[1738312752285,6.1812,3239.6,3239.0,3.08731]
[1738312752493,3.09432,3239.6,3239.0,3.08731]
[1738312756815,6.1812,3239.6,3239.0,3.08731]
[1738312756985,3.09432,3239.6,3239.0,3.08731]
[1738312757485,3.09432,3239.6,3239.1,3.08727]
[1738312758320,3.09432,3239.6,3239.0,3.08731]
[1738312761450,0.7684,3239.7,3239.1,3.08727]
[1738312761632,0.7977,3240.4,3240.0,3.08636]
[1738312762055,3.88351,3240.7,3240.0,3.08636]
[1738312763452,3.08632,3240.1,3239.5,3.8499]
[1738312763617,0.7913,3240.0,3239.5,3.0868]
[1738312765348,0.7913,3240.0,3239.6,3.08678]
[1738312765663,0.7913,3240.0,3239.5,3.0868]
[1738312765818,3.08585,3240.6,3239.9,3.08642]
[1738312766546,3.0075,3240.6,3239.9,3.08642]
[1738312766753,3.08595,3240.5,3239.9,3.08642]
[1738312766958,3.0075,3240.6,3240.1,3.08628]
[1738312767164,3.0,3240.6,3240.1,3.08628]
[1738312767466,0.7637,3240.7,3240.1,3.394908]
[1738312767667,0.7637,3240.7,3240.2,0.7802]
[1738312767824,3.08541,3241.1,3240.2,0.7802]
[1738312768172,3.8324,3241.0,3240.5,3.08594]
[1738312770342,0.8144,3241.3,3240.7,0.8045]